[Event "Frauenbundesliga 2024-25"]
[Site "Germany"]
[Date "2025.01.25"]
[Round "3.5"]
[White "Injac, Teodora"]
[Black "Cyfka, Karina"]
[Result "1/2-1/2"]
[Annotator "TA"]
[ECO "D02"]
[WhiteElo "2453"]
[BlackElo "2365"]
[PlyCount "95"]
[EventDate "2024.11.06"]
[EventType "team-tourn"]
[EventCountry "GER"]
[SourceTitle "playchess.com"]
[Source "ChessBase"]
[SourceQuality "1"]
[WhiteTeam "Baden-Baden"]
[BlackTeam "Bad Koenigshofen"]
[TimeControl "40/5400+30:1800+30"]

{[%evp 9,95,17,43,46,46,16,17,15,36,32,34,39,47,39,45,39,56,48,58,64,90,103,99,49,52,35,37,0,0,0,0,0,0,-25,-7,-32,-10,-6,-8,-17,-2,-8,0,0,0,0,0,0,0,0,0,0,0,0,0,0,0,0,0,0,0,0,0,0,0,0,0,0,0,0,0,0,0,0,0,0,0,0,0,0,0,0,0,0,0,0,0,0]} 1. Nf3 {[%emt 0:00:28]} d5 {[%emt 0:00:23]} 2. g3 {[%emt 0:00:36]} Nd7 {[%emt 0:00:36]} 3. d4 {[%emt 0:00:23]} Nb6 {[%emt 0:00:37]} 4. Nc3 {[%emt 0:00:37]} Nf6 {[%emt 0:02:16]} 5. Bg2 {[%emt 0:00:21]} h6 {[%emt 0:01:30]} 6. a4 {[%emt 0:08:12] D02: 1 d4 d5 2 Nf3 sidelines, including 2...Nf6 3 g3 and 2...Nf6 3 Bf4.} a5 {[%emt 0:03:39]} 7. b3 {[%emt 0:19:46]} Bf5 $146 {[%emt 0:04:49]} (7... e6 8. O-O Bd6 9. Nb5 O-O 10. Qd3 Bd7 11. c4 Bxb5 12. axb5 Be7 13. Bd2 Bb4 14. Bxb4 axb4 {1-0 Thybo,J (2587)-Kanyamarala,T (2093) EU-Cup 36th Struga 2021 (4.4)}) 8. Ba3 {[%emt 0:00:32]} Ne4 {[%emt 0:03:31]} 9. Nxe4 {[%emt 0:07:54]} dxe4 {[%emt 0:24:23]} 10. Ne5 {[%emt 0:00:04]} f6 {[%emt 0:00:15]} 11. Nc4 {[%emt 0:01:58]} Nxc4 {[%emt 0:02:02]} 12. bxc4 {[%emt 0:00:04]} Qd7 {[%emt 0:01:08]} 13. c3 {[%emt 0:03:46]} Kf7 {[%emt 0:09:41]} 14. e3 {[%emt 0:03:48]} e6 {[%emt 0:04:07]} 15. Bxf8 {[%emt 0:07:19]} Rhxf8 {[%emt 0:00:39]} 16. Qc2 {[%emt 0:00:38]} (16. Rb1 $16) 16... Qc6 $14 {[%emt 0:04:32]} 17. O-O {[%emt 0:03:06]} Qxc4 {[%emt 0:03:24]} 18. Bxe4 {[%emt 0:01:28]} Bxe4 {[%emt 0:01:48]} 19. Qxe4 {[%emt 0:00:02]} b6 {[%emt 0:00:20]} 20. Qf3 {[%emt 0:05:53]} Rad8 {[%emt 0:02:13]} 21. Rfd1 {[%emt 0:04:53]} Kg8 {[%emt 0:01:03]} 22. e4 {[%emt 0:01:02]} e5 {[%emt 0:03:11]} 23. d5 {[%emt 0:08:11] The position is equal.} c6 {[%emt 0:10:14]} 24. Rab1 {[%emt 0:01:13]} cxd5 {[%emt 0:01:59]} 25. Rxd5 {[%emt 0:02:13]} Rxd5 {[%emt 0:06:08]} 26. exd5 {[%emt 0:00:05]} Rd8 {[%emt 0:00:38]} 27. Rxb6 {[%emt 0:06:19] d6 would now be deadly.} Qxd5 {[%emt 0:00:14]} 28. Qxd5+ {[%emt 0:00:47]} Rxd5 $11 {[%emt 0:00:04][%mdl 4096] Endgame KR-KR} 29. Rb5 {[%emt 0:00:25]} Rd1+ {[%emt 0:00:12]} 30. Kg2 {[%emt 0:00:01]} Rc1 {[%emt 0:00:26]} 31. Rc5 {[%emt 0:00:27]} Kf7 {[%emt 0:02:31]} 32. g4 {[%emt 0:06:23]} Ke6 {[%emt 0:00:37]} 33. h4 {[%emt 0:01:03]} g6 {[%emt 0:00:53]} 34. Rxa5 {[%emt 0:01:07]} Rxc3 {[%emt 0:00:34]} 35. Ra6+ {[%emt 0:00:04]} Kf7 {[%emt 0:01:22]} 36. Ra7+ {[%emt 0:00:49]} Ke6 {[%emt 0:00:18]} 37. a5 {[%emt 0:01:45]} Rc4 {[%emt 0:02:17]} 38. Kf3 {[%emt 0:02:51]} Rf4+ {[%emt 0:01:44]} 39. Kg3 {[%emt 0:00:14]} h5 {[%emt 0:00:35]} 40. f3 {[%emt 0:02:56]} Ra4 {[%emt 0:00:40]} 41. Ra6+ {[%emt 0:10:44]} Kf7 {[%emt 0:00:33]} 42. g5 {[%emt 0:08:06]} fxg5 {[%emt 0:09:54]} 43. hxg5 {[%emt 0:00:01]} Kg7 {[%emt 0:13:32]} 44. Ra7+ {[%emt 0:01:07]} Kg8 {[%emt 0:00:08]} 45. a6 {[%emt 0:01:01]} Ra2 {[%emt 0:00:56]} 46. Ra8+ {[%emt 0:00:48]} Kg7 {[%emt 0:00:29]} 47. Ra7+ {[%emt 0:00:16]} Kg8 {[%emt 0:00:03]} 48. Ra8+ {[%emt 0:00:26] Weighted Error Value: White=0.06 (flawless) /Black=0.04 (flawless)   Mistake:       	White=1     	---        Inaccurate:     	White=2     	Black=1      OK:         	White=10    	Black=25     Best:        	White=1     	Black=1} 1/2-1/2

[Event "Frauenbundesliga 2024-25"]
[Site "Germany"]
[Date "2025.01.25"]
[Round "3.5"]
[White "Dwilewicz, Katarzyna"]
[Black "Agrest, Inna"]
[Result "0-1"]
[Annotator "TA"]
[ECO "C28"]
[WhiteElo "2173"]
[BlackElo "2159"]
[PlyCount "122"]
[EventDate "2024.11.06"]
[EventType "team-tourn"]
[EventCountry "GER"]
[SourceTitle "playchess.com"]
[Source "ChessBase"]
[SourceQuality "1"]
[WhiteTeam "Schachfreunde Deizisau"]
[BlackTeam "SG Solingen"]
[TimeControl "40/5400+30:1800+30"]

{[%evp 9,122,-7,0,0,0,0,0,3,7,-4,66,65,69,64,56,33,64,-64,-31,-39,-25,-35,0,0,22,0,146,-43,-44,-40,-41,-43,-52,-33,-41,-37,-21,-67,-53,-116,-114,-141,-126,-183,-137,-195,-51,-43,-43,-97,-75,-106,-37,-135,-138,-191,-198,-198,-121,-106,-82,-81,-77,-74,-71,-69,-69,-84,-97,-105,-27,-45,-32,-28,-29,-37,-29,-28,-42,-191,-191,-390,-392,-358,-368,-360,-335,-895,-720,-962,-882,-1304,-471,-1296,-1283,-1760,-1727,-2538,-2150,-2599,-2771,-3536,-6621,-29979,-29980,-29982,-29983,-29984,-29984,-29989,-29990,-29993,-29993,-29998,-29999]} 1. e4 {[%emt 0:00:04]} e5 {[%emt 0:00:26]} 2. Bc4 {[%emt 0:00:34]} Nc6 {[%emt 0:00:50]} 3. Nc3 {[%emt 0:02:25]} Nf6 {[%emt 0:00:43]} 4. d3 {[%emt 0:00:21]} Na5 {[%emt 0:02:12]} 5. Qf3 {[%emt 0:00:53]} c6 {[%emt 0:01:25]} 6. Nge2 {[%emt 0:01:51] C28: Vienna Game: 2...Nf6 3 Bc4 Nc6.} b5 {[%emt 0:09:24]} 7. Bb3 {[%emt 0:01:55]} d6 {[%emt 0:01:26]} 8. h3 {[%emt 0:01:08] The position is equal.} Be7 {[%emt 0:01:25]} 9. Ng3 {[%emt 0:03:21]} g6 $146 {[%emt 0:06:28]} (9... O-O $11) (9... O-O 10. O-O h6 11. Nf5 Bxf5 12. Qxf5 Re8 13. Be3 Bf8 14. Rad1 Nxb3 15. axb3 g6 {0-1 Mikalsen,E (2354)-Alekseenko,K (2691) EU-Cup 37th Mayrhofen 2022 (1.3)}) 10. Bh6 $14 {[%emt 0:02:10]} Nxb3 {[%emt 0:04:04]} 11. axb3 {[%emt 0:00:41]} Nd7 {[%emt 0:00:13]} 12. b4 {[%emt 0:21:18]} a5 {[%emt 0:04:21] [#]} 13. h4 {[%emt 0:06:06]} Bxh4 {[%emt 0:06:29]} 14. bxa5 {[%emt 0:01:41]} b4 $1 {[%emt 0:02:35]} 15. Nd1 {[%emt 0:04:05][%cal Bc3d1,Bd1e3,Be3c4][%mdl 32] A sharp opening} Bf6 {[%emt 0:09:38]} 16. Ne3 {[%emt 0:06:41]} Nc5 {[%emt 0:03:55][%cal Oc8e6]} 17. Nc4 {[%emt 0:02:47][%cal Od3d4] d4! is the strong threat.} b3 {[%emt 0:03:42]} (17... Be6 $1 $11 {remains equal.}) 18. c3 $2 {[%emt 0:02:19]} (18. Nb6 $6 Rb8 $16) (18. d4 $1 $16 {[%cal Rd4c5]} Ba6 19. dxc5 (19. cxb3 Nd7 $16) (19. Nxd6+ Qxd6 20. dxc5 Qd8 $16) 19... Bxc4 20. cxb3) 18... Ba6 $15 {[%emt 0:00:44]} 19. O-O {[%emt 0:12:05]} Bxc4 {[%emt 0:08:53]} 20. dxc4 {[%emt 0:00:05]} Bg5 {[%emt 0:00:18]} 21. Bxg5 {[%emt 0:01:42]} Qxg5 {[%emt 0:00:04]} 22. Rfd1 {[%emt 0:00:34]} Qe7 {[%emt 0:00:27] Successful Defense Black} (22... Ke7 {with more complications.} 23. Ne2 h5 24. Nc1 Qg4) 23. Rd2 {[%emt 0:01:58]} (23. Ra3 $11) 23... O-O {[%emt 0:01:18]} 24. Qe3 {[%emt 0:03:04]} (24. Qd1 $15) 24... Rfd8 {[%emt 0:03:40]} 25. Qh6 {[%emt 0:01:00]} Rd7 {[%emt 0:05:55]} 26. Re2 {[%emt 0:04:22]} (26. f3 $17) 26... Ne6 {[%emt 0:04:27]} (26... Rda7 $19 27. Re3 f6 (27... Rxa5 $2 28. Rxa5 Rxa5 29. Nf5 $19)) 27. Re3 {[%emt 0:02:46]} (27. Qc1 $17) 27... Qg5 {[%emt 0:00:57]} (27... Rda7 $19 28. Nf5 Qf8 (28... gxf5 29. exf5 Qf8 30. Qh4 $11)) 28. Qxg5 {[%emt 0:00:04]} Nxg5 {[%emt 0:00:03]} 29. Rd3 {[%emt 0:00:36]} (29. Nf1 $15) 29... Ne6 {[%emt 0:01:16]} 30. f3 {[%emt 0:01:18]} Kf8 {[%emt 0:00:52]} (30... Rda7 $1 $17 31. Nh1 (31. Rxd6 $2 Rxa5 32. Rad1 Ra2 $19) 31... Rxa5 32. Rxa5 Rxa5) 31. Ne2 {[%emt 0:00:52]} (31. Ra3 $15) 31... Ke7 $17 {[%emt 0:00:30]} 32. Ra3 {[%emt 0:01:44] [#]} (32. Kf2 $17 {might work better.}) 32... Rda7 $1 $19 {[%emt 0:04:07]} 33. Rd1 {[%emt 0:00:22][%cal Od1a1]} (33. Rxb3 $2 Nc5 (33... Rxa5 34. Rb7+ Kf8 35. Rxd6 $16) 34. Nc1 Nxb3 (34... Rxa5 $2 35. Rb6 $19) (34... Nxd3 $2 35. Nxd3 Rxa5 36. Rb7+ Kf6 37. Nb4 $19) 35. Nxb3 Rb7 $19) 33... Nc5 {[%emt 0:00:51]} ({Black should try} 33... Rxa5 $19 34. Rxb3 R5a7) 34. Rda1 $17 {[%emt 0:00:23]} f5 {[%emt 0:02:04]} 35. exf5 {[%emt 0:00:21]} gxf5 {[%emt 0:00:04]} 36. Nc1 {[%emt 0:01:01]} Rb8 {[%emt 0:00:23]} 37. Kf2 {[%emt 0:00:14]} Ke6 {[%emt 0:02:06]} 38. g3 {[%emt 0:09:23]} h5 {[%emt 0:01:47][%cal Oh5h4] Black has more active pieces. The white rooks are passive.} 39. a6 {[%emt 0:03:43] [#]} Rb6 {[%emt 0:00:48]} (39... Rg8 $1 $17 {[%cal Oh5h4] ...h4! is the strong threat.} 40. Ra5 (40. Nxb3 Nd3+ 41. Ke2 Nxb2 $17) 40... Ke7) 40. Ke3 {[%emt 0:00:24]} Raxa6 {[%emt 0:05:41]} (40... Nxa6 41. c5 f4+ 42. gxf4 dxc5 43. Nd3 (43. Rxb3 exf4+ 44. Ke4 Rxb3 $16) 43... exf4+ 44. Nxf4+ Kd7 45. Kf2 $18 (45. Nxh5 Kc8 $18)) 41. Rxa6 {[%emt 0:05:49]} (41. Nd3 $2 Nxd3 42. Kxd3 Rxa3 43. Rxa3 Rb7 $19) 41... Nxa6 $15 {[%emt 0:01:13][%mdl 4096] Endgame KRN-KRN. Black is a pawn up.} 42. Nd3 {[%emt 0:00:35]} Kf6 {[%emt 0:02:37]} 43. Rh1 {[%emt 0:08:01]} Kg6 {[%emt 0:00:11]} 44. f4 {[%emt 0:02:14] Loses the game.} (44. c5 Nxc5 (44... dxc5 $2 45. Nxe5+ Kh6 46. Kf4 $18) 45. Nxc5 dxc5 $17) ({White should try} 44. Ra1 $15) 44... e4 $19 {[%emt 0:00:58]} 45. Nc1 {[%emt 0:00:48]} (45. c5 {was the only defense.} Rb7 (45... dxc5 $2 {is the wrong capture.} 46. Ne5+ Kh6 47. Rd1 $16) (45... Nxc5 $2 46. Nxc5 dxc5 47. Ra1 $19) 46. Ra1 Nxc5 47. Nxc5 dxc5 48. Ra5) 45... Nc5 {[%emt 0:03:27]} 46. Rd1 {[%emt 0:00:07]} Nb7 {[%emt 0:01:16]} 47. Ne2 {[%emt 0:01:26]} Ra6 {[%emt 0:03:08]} 48. Rd2 $2 {[%emt 0:10:29]} (48. c5 dxc5 49. Kf2) 48... c5 {[%emt 0:01:46]} 49. Nc1 {[%emt 0:04:19]} Na5 {[%emt 0:00:25]} 50. Re2 {[%emt 0:01:00]} Nxc4+ {[%emt 0:00:38]} 51. Kf2 {[%emt 0:00:02]} Rb6 {[%emt 0:01:19]} 52. g4 {[%emt 0:02:02]} hxg4 {[%emt 0:00:22]} 53. Kg3 {[%emt 0:00:03]} d5 {[%emt 0:01:05]} 54. Rh2 {[%emt 0:00:03]} d4 {[%emt 0:01:05]} 55. cxd4 {[%emt 0:00:05]} cxd4 {[%emt 0:00:04] ( -> ...d3)} 56. Rh8 {[%emt 0:00:32]} d3 {[%emt 0:00:39] Black mates.} 57. Rd8 {[%emt 0:00:34]} Nxb2 {[%emt 0:00:32]} 58. Kh4 {[%emt 0:00:16]} e3 {[%emt 0:01:20]} 59. Nxd3 {[%emt 0:00:20]} Nxd3 {[%emt 0:00:06]} 60. Rxd3 {[%emt 0:00:06]} e2 {[%emt 0:01:20]} 61. Rxb3 {[%emt 0:01:52]} e1=Q+ {[%emt 0:00:11] Weighted Error Value: White=0.74/Black=0.19 (very precise)   Mistake:       	White=12    	Black=7      Inaccurate:     	White=2     	Black=3      OK:         	White=14    	Black=10     Best:        	White=5     	Black=6      Strong:       	---       	Black=2} 0-1

[Event "Frauenbundesliga 2024-25"]
[Site "Germany"]
[Date "2025.01.25"]
[Round "3.5"]
[White "Brandt, Carina"]
[Black "Peglau, Mirjam"]
[Result "0-1"]
[Annotator "TA"]
[ECO "B17"]
[WhiteElo "2061"]
[BlackElo "1958"]
[PlyCount "126"]
[EventDate "2024.11.06"]
[EventType "team-tourn"]
[EventCountry "GER"]
[SourceTitle "playchess.com"]
[Source "ChessBase"]
[SourceQuality "1"]
[WhiteTeam "Harksheide"]
[BlackTeam "Dippoldiswalde"]
[TimeControl "40/5400+30:1800+30"]

{[%evp 9,126,-17,-10,-17,-15,-7,0,0,0,-16,63,6,108,116,197,143,456,75,69,81,68,62,181,169,235,238,231,154,195,209,275,34,46,41,65,62,60,66,53,43,41,0,0,0,0,0,0,0,0,0,0,0,0,-30,0,0,0,0,0,0,0,0,0,0,0,0,0,-16,0,-35,-51,-74,-33,-139,-146,-290,-269,-204,-198,-1128,-77,-592,-596,-302,-595,-565,-509,-600,-600,-133,-600,-600,-585,-592,-564,-950,-552,-1013,0,-913,-844,-560,-451,-372,-372,-1062,-1048,-580,-528,-29976,-29977,-29977,-29978,-29986,-29958,-29986,-29978,-29978,-29979]} 1. e4 {[%emt 0:00:04]} c6 {[%emt 0:00:04]} 2. d4 {[%emt 0:00:07]} d5 {[%emt 0:00:02]} 3. Nd2 {[%emt 0:00:06]} dxe4 {[%emt 0:00:04]} 4. Nxe4 {[%emt 0:00:06]} Nd7 {[%emt 0:00:03]} 5. b3 {[%emt 0:08:17]} Ngf6 {[%emt 0:01:58]} 6. Ng3 {[%emt 0:00:28] B17: Caro-Kann: Modern Line (4...Nd7).} e6 {[%emt 0:05:59]} 7. Bb2 {[%emt 0:03:48]} Qa5+ $146 {[%emt 0:10:48]} (7... Be7 8. Bd3 O-O 9. N1e2 c5 10. O-O Qc7 11. c4 b6 12. Rc1 Bb7 13. Kh1 Rad8 {½-½ Ull Molina,C (1850)-Carbonell Sancho,M (1824) Alzira op 4th 2014 (5)}) 8. c3 {[%emt 0:00:15] The position is equal.} c5 {[%emt 0:02:15]} 9. Nf3 {[%emt 0:03:40]} Nd5 {[%emt 0:19:57]} (9... cxd4 $11 10. Nxd4 Be7) 10. Qd2 {[%emt 0:06:22]} (10. Bc4 $14) 10... b6 {[%emt 0:01:17]} (10... cxd4 $11 {keeps the balance.} 11. Qxd4 Be7) 11. a4 $1 $16 {[%emt 0:06:10]} Ba6 {[%emt 0:03:00] [#] Prevents Bb5} (11... a6 $16 {might work better.}) 12. Bb5 {[%emt 0:03:45]} ({White should try} 12. Bxa6 $1 $18 {[%mdl 512]} Qxa6 13. c4) 12... N5f6 $2 {[%emt 0:04:29][%mdl 8192]} (12... Bxb5 $16 13. axb5 Qxb5) 13. c4 $2 {[%emt 0:19:53]} (13. Qd3 $18 {has better winning chances.}) 13... Qxd2+ {[%emt 0:00:24]} 14. Kxd2 {[%emt 0:00:35] A sharp opening} Bb7 {[%emt 0:01:33] [#]} 15. d5 {[%emt 0:06:23]} O-O-O {[%emt 0:03:20]} ({Black should try} 15... Bd6 $14) (15... exd5 16. Rhe1+) 16. Ng5 $18 {[%emt 0:05:34][%csl LRe6,LRf7]} Rg8 {[%emt 0:04:16]} (16... a6 $142) 17. Nxf7 {[%emt 0:02:32]} (17. dxe6 fxe6 18. Nxe6 Re8) 17... Re8 {[%emt 0:00:00]} 18. a5 {[%emt 0:04:00]} exd5 {[%emt 0:03:06]} 19. axb6 $1 {[%emt 0:03:04]} axb6 {[%emt 0:00:09]} 20. cxd5 {[%emt 0:01:08]} ({White must play} 20. Bxf6 $18 Nxf6 21. Bxe8 Nxe8 22. Nf5) 20... Bxd5 $14 {[%emt 0:06:30]} 21. Bxf6 {[%emt 0:06:05]} gxf6 {[%emt 0:02:06]} 22. Ra7 $1 {[%emt 0:00:06][%cal Oh1a1] White attacks} Re7 $1 {[%emt 0:06:18]} 23. Nd6+ {[%emt 0:02:52]} Kb8 {[%emt 0:03:59]} 24. Rha1 {[%emt 0:00:10] White has strong rooks and is better} (24. Rxd7 Rxd7 25. Bxd7 Bxd6 $15) 24... Ne5 {[%emt 0:01:22]} 25. R7a6 {[%emt 0:01:38]} Re6 $1 $36 {[%emt 0:03:41][%mdl 2048] Black has some pressure.} 26. Nc4 {[%emt 0:03:46]} (26. Rxb6+ $2 Kc7 27. f4 Ng6 $19 (27... Kxb6 $2 28. Ra6+ Kc7 29. fxe5 $19) (27... Rxd6 28. Rxd6 Bxd6 29. fxe5 $17) (27... Bxg2 28. fxe5 Kxb6 29. Ra6+ Kc7 30. Bc4 $17)) 26... Nxc4+ {[%emt 0:02:54] Successful Defense Black} 27. Bxc4 {[%emt 0:00:05]} Bxc4 {[%emt 0:03:25]} 28. bxc4 {[%emt 0:01:16] Threatens to win with Ra8+.} Kb7 {[%emt 0:04:51]} 29. Ra7+ {[%emt 0:00:32]} Kc6 {[%emt 0:00:01]} 30. Rxh7 {[%emt 0:00:29]} Bd6 {[%emt 0:00:12]} 31. Raa7 {[%emt 0:05:22]} Rd8 {[%emt 0:01:10]} (31... Rg4 {with more complications.} 32. Kc3 Re1 33. Nf5 Rc1+) 32. Kc2 $1 {[%emt 0:01:32]} Bxg3 {[%emt 0:02:11]} 33. hxg3 $11 {[%emt 0:00:01][%mdl 4096] Endgame KRR-KRR. White is a pawn up.} Re2+ {[%emt 0:00:04]} 34. Kc3 {[%emt 0:00:09]} Rxf2 {[%emt 0:00:09]} 35. Rhc7+ {[%emt 0:01:02]} Kd6 {[%emt 0:00:07]} 36. Rcb7 {[%emt 0:00:20]} Kc6 {[%emt 0:00:30]} 37. Rc7+ {[%emt 0:00:22]} Kd6 {[%emt 0:00:02]} 38. Rf7 {[%emt 0:00:11]} Ke6 {[%emt 0:01:02]} 39. Rae7+ {[%emt 0:01:13]} Kf5 {[%emt 0:00:36]} 40. Re3 {[%emt 0:02:04]} Kg6 {[%emt 0:01:52][%cal Od8a8]} 41. Rfe7 {[%emt 0:33:24]} (41. Rb7 $1 $15) 41... Ra8 $1 $17 {[%emt 0:09:44][%cal Ra8a3] Black is more active.} (41... Rxg2 42. R7e6 $15) 42. Re2 {[%emt 0:00:00]} (42. Kd3 $17 {was the only defense.}) 42... Rxe2 {[%emt 0:00:40]} 43. Rxe2 $19 {[%emt 0:00:00] KR-KR} Ra3+ {[%emt 0:00:03]} 44. Kd2 $2 {[%emt 0:00:00] [#]} (44. Kb2 Rxg3 45. Re6) 44... Rxg3 $2 {[%emt 0:00:03]} (44... Ra2+ $1 $19 45. Ke3 Ra3+ 46. Kf4 Rc3) 45. Re6 $2 {[%emt 0:00:00][%mdl 8192]} (45. Kd1 $17) 45... Rxg2+ {[%emt 0:03:44]} 46. Kc3 {[%emt 0:00:00]} Rg3+ {[%emt 0:00:05]} 47. Kc2 {[%emt 0:00:00]} Rg5 {[%emt 0:01:57]} 48. Rxb6 {[%emt 0:00:00] [#]} Re5 $1 {[%emt 0:00:38]} 49. Kd3 {[%emt 0:00:00]} Kg5 {[%emt 0:00:54]} 50. Rb8 {[%emt 0:00:00]} Kf4 {[%emt 0:01:22]} 51. Rc8 {[%emt 0:00:00]} f5 {[%emt 0:00:31]} 52. Rg8 {[%emt 0:00:00]} Kf3 {[%emt 0:00:25]} 53. Rg5 {[%emt 0:00:00]} Kf4 {[%emt 0:00:35]} 54. Rg8 {[%emt 0:00:00]} Re3+ 55. Kd2 {[%emt 0:00:00]} Re4 56. Kd3 {[%emt 0:00:00]} Kf3 57. Rg5 $2 {[%emt 0:00:00]} (57. Rd8 f4 58. Rd5) 57... Re5 {[%emt 0:02:00]} 58. Kd2 {[%emt 0:00:00]} Ke4 {aiming for ...f4.} 59. Kc3 {[%emt 0:00:00]} f4 {Black mates.} 60. Rg1 {[%emt 0:00:00]} f3 61. Kd2 {[%emt 0:00:00]} Kd4 62. Rc1 {[%emt 0:00:00]} f2 63. Rf1 {[%emt 0:00:00]} Rf5 {[%emt 0:03:00] Never resign too early!   Weighted Error Value: White=0.78/Black=0.43  Loses game:     	White=1     	Black=1      Missed win:     	White=2     	Black=1      Mistake:       	White=6     	Black=5      Inaccurate:     	White=6     	Black=4      OK:         	White=12    	Black=8      Best:        	White=3     	Black=8      Strong:       	White=3     	Black=4      Brilliant:      	White=1     	---} ({Less strong is} 63... Kxc4 64. Rxf2 Rg5 65. Kc2 $11) 0-1

[Event "Frauenbundesliga 2024-25"]
[Site "Germany"]
[Date "2025.01.25"]
[Round "3.6"]
[White "Savina, Anastasia"]
[Black "Heinemann, Josefine"]
[Result "1-0"]
[Annotator "TA"]
[ECO "E49"]
[WhiteElo "2318"]
[BlackElo "2308"]
[PlyCount "63"]
[EventDate "2024.11.06"]
[EventType "team-tourn"]
[EventCountry "GER"]
[SourceTitle "playchess.com"]
[Source "ChessBase"]
[SourceQuality "1"]
[WhiteTeam "Bad Koenigshofen"]
[BlackTeam "Baden-Baden"]
[TimeControl "40/5400+30:1800+30"]

{[%evp 19,62,0,0,-7,-6,0,4,0,25,11,16,18,95,69,168,147,172,178,165,159,402,175,613,583,929,918,912,906,1736,1761,29983,29984,2948,710,1781,1726,29991,29989,29989,29990,29997,29998,29998,29999,29999]} 1. d4 {[%emt 0:00:06]} Nf6 {[%emt 0:00:09]} 2. c4 {[%emt 0:00:05]} e6 {[%emt 0:00:04]} 3. Nc3 {[%emt 0:00:17]} Bb4 {[%emt 0:00:05]} 4. e3 {[%emt 0:00:08]} O-O {[%emt 0:00:11]} 5. Bd3 {[%emt 0:00:49]} d5 {[%emt 0:00:13]} 6. a3 {[%emt 0:00:09]} Bxc3+ {[%emt 0:00:19]} 7. bxc3 {[%emt 0:00:05]} dxc4 {[%emt 0:00:06]} 8. Bxc4 {[%emt 0:00:04]} c5 {[%emt 0:00:05]} 9. Ne2 {[%emt 0:00:16]} Qc7 {[%emt 0:01:01]} 10. Bd3 {[%emt 0:00:49]} Nc6 {[%emt 0:04:58]} 11. f4 {[%emt 0:01:44] E49: Nimzo-Indian: Rubinstein: 5 Bd3 d5 6 a3 Bxc3+ 7 bxc3.} Rd8 {[%emt 0:06:01]} 12. O-O {[%emt 0:03:17]} b6 {[%emt 0:05:32]} 13. Ng3 {[%emt 0:01:48] The position is equal.} Bb7 {[%emt 0:05:21]} 14. Qe2 {[%emt 1:27:53]} Rac8 15. Bb2 Qb8 $146 (15... Qe7 $11 {remains equal.}) (15... Na5 16. Rac1 Qe7 17. h3 a6 18. Kh2 b5 19. e4 Nc4 20. Ba1 Ne8 21. f5 Qg5 {0-1 Salem,A (2644)-Nepomniachtchi,I (2766) Wch Rapid Almaty 2022 (4)}) 16. Rad1 {White is more active.} Qa8 ({Better is} 16... Qc7 $14) 17. h3 h6 18. e4 cxd4 19. cxd4 Nxd4 (19... Rxd4 $16 20. Bxd4 Nxd4) 20. Qf2 (20. Qe3 $142) 20... Nb3 $2 (20... Nxe4 21. Nxe4 Bxe4 22. Bxd4 Bxd3 (22... Bxg2 $2 23. Qxg2 Qxg2+ 24. Kxg2 $18) 23. Rxd3 Qe4) 21. Bxf6 $18 gxf6 22. Nh5 {[#]} Kf8 23. Qg3 {aiming for Qg7+.} Nc5 24. Qg7+ (24. Nxf6 Rxd3 25. Rxd3 Nxd3 $16) 24... Ke8 25. Bb5+ Bc6 26. Qh8+ ({Not} 26. Nxf6+ Ke7 $16) 26... Ke7 27. Qxf6+ Ke8 {[#]} 28. f5 $1 {White mates.} Rxd1 29. Rxd1 exf5 30. Ng7+ Kf8 31. Nxf5 {[%cal Rf6h8]} Bxb5 32. Qh8# {Black did not feel at home in the position after the opening.   Weighted Error Value: White=0.62/Black=1.51  Loses game:     	---       	Black=1      Mistake:       	White=1     	Black=3      Inaccurate:     	---       	Black=1      OK:         	White=2     	Black=2      Best:        	White=1     	---} 1-0